Cogmind - Beta 14 @@@ ROGUE MODE // 2024.11.16 @ 19:47:38 Player: Fangrelle Result: Destroyed by D-53 Grenadier with Mini Grenade Launcher Performance ------------- Evolutions (0) 0 Regions Visited (4) 800 Robots Destroyed (4) 20 Value Destroyed (27) 27 Prototype IDs (23) 460 Alien Tech Used (0) 0 Bonus (356) 356 TOTAL SCORE: 1663 Bonus ------- Follower Combat Kills 56 Aligned with FarCom 300 Cogmind --------- Core Integrity 0/250 Matter 183/300 Energy 100/100 System Corruption 2% Temperature Cool (0) Movement Flying (920) Ox11 Location -9/Mines Parts ------- > --- POWER (1) -------- (None) > --- PROPULSION (2) --- Flight Unit (fused) > --- UTILITY (2) ------ High-capacity Storage Unit > --- WEAPON (2) ------- Heavy Assault Rifle (fused) Makeshift Hammer (fused) > --- INVENTORY (20) --- Nuclear Core Huge Storage Unit Humpback Humpback Humpback Humpback Humpback Hardened Light Armor Plating Trap Reconfigurator EM Pulse Gun EMP Blaster EMP Blaster Rocket Launcher Peak State ------------ > --- POWER ------------ (None) > --- PROPULSION ------- Flight Unit Flight Unit > --- UTILITY ---------- High-capacity Storage Unit > --- WEAPON ----------- Heavy Assault Rifle Makeshift Hammer > --- INVENTORY -------- Nuclear Core Reinforced Deuterium Engine Fission Core Huge Storage Unit Humpback Humpback Humpback Humpback Humpback Hardened Light Armor Plating Trap Reconfigurator EM Pulse Gun EMP Blaster EMP Blaster Rocket Launcher [Rating: 13] Favorites ----------- Power None Propulsion Flight Unit Flight Unit Flight Unit Utility Humpback Device Shield Generator Storage Humpback Processor Targeting Computer Protection Hardened Light Armor Plating Weapon Makeshift Hammer Energy Gun EM Pulse Gun Ballistic Gun Heavy Assault Rifle Launcher EMP Blaster Special Weapon Mining Laser Impact Weapon Makeshift Hammer Build | -11 -10 -10 -10 -9 ------- Run | Yrd Mat Min Exi Min Slots Evolved . | . . . . . Power . | . . . . . Propulsion . | . . . . . Utility . | . . . . . Weapon . | . . . . . Parts Attached 17 | . 6 6 1 4 Power . | . . . . . Engine . | . . . . . Core . | . . . . . Reactor . | . . . . . Propulsion 2 | . . 2 . . Treads . | . . . . . Leg . | . . . . . Wheel . | . . . . . Hover . | . . . . . Flight 2 | . . 2 . . Utility 6 | . 3 1 1 1 Device 2 | . 2 . . . Storage 2 | . . . 1 1 Processor 1 | . . 1 . . Hackware . | . . . . . Protection 1 | . 1 . . . Artifact . | . . . . . Weapon 9 | . 3 3 . 3 Energy Gun 1 | . . 1 . . Energy Cannon . | . . . . . Ballistic Gun 3 | . . . . 3 Ballistic Cannon . | . . . . . Launcher 2 | . 1 1 . . Special Weapon 2 | . 2 . . . Impact Weapon 1 | . . 1 . . Slashing Weapon . | . . . . . Piercing Weapon . | . . . . . Special Melee Weapon . | . . . . . Unidentified Prototypes . | . . . . . Parts Lost 3 | . 1 1 . 1 Power . | . . . . . Propulsion 1 | . . . . 1 Utility 1 | . . 1 . . Weapon 1 | . 1 . . . Highest Loss Streak 1 | . 1 1 . 1 To Critical Strikes . | . . . . . Average Slot Usage (%) 56 | . 25 26 57 68 Flight 27 | . . 12 28 28 Storage 13 | . . . 13 14 Ballistic Gun 1 | . . . . 11 Impact Weapon 13 | . . 3 14 14 Peak Build Rating 13 | . 6 7 12 13 Average Rating 9 | . 2 3 9 12 On Entrance 6 | 6 6 2 7 12 Naked Turns 57 | . 40 17 . . Heaviest Build 203 | 11 6 4 203 46 Greatest Support 20 | 20 3 8 8 8 Greatest Overweight (x) 25 | . 1 1 25 5 Average Overweight (x) 8 | . . . 20 4 Largest Inventory Capacity 35 | . 5 5 35 20 Average Capacity 32 | . 5 5 34 19 Most Carried 20 | . 5 5 20 20 Average Carried 15 | . 4 4 15 18 Final Capacity 35 | 8 5 5 35 20 Final Carried 20 | 6 5 5 20 18 Class Distribution -------------------- 87% | Hauler-Mutant 12% | Mutant Dominant Class ---------------- Mutant | -10/Materials Mutant | -10/Mines Hauler-Mutant | -10/Exiles Mutant | -9/Mines Resources | -11 -10 -10 -10 -9 ----------- Run | Yrd Mat Min Exi Min Matter Collected 535 | 200 . 93 . 242 Remotely . | . . . . . Salvage Created 124 | . . 83 . 41 Parts 7 | . . 3 . 4 Haulers Intercepted . | . . . . . Recyclers Shooed . | . . . . . Parts Field Recycled . | . . . . . Retrieved Matter . | . . . . . Parts Self-Destructed . | . . . . . Prevented . | . . . . . Kills | -11 -10 -10 -10 -9 ------- Run | Yrd Mat Min Exi Min Combat Hostiles Destroyed 2 | . . . . 2 Guns 2 | . . . . 2 Classes Destroyed 3 | . . 1 . 2 Worker 1 | . . . . 1 Recycler 1 | . . 1 . . Swarmer 2 | . . . . 2 Best Kill Streak 2 | . . 1 . 2 Combat Bots Only 2 | . . . . 2 Max Kills in Single Turn 1 | . . 1 . 1 Gunslinging . | . . . . . Exploded . | . . . . . Melee . | . . . . . Uniques/NPCs Destroyed . | . . . . . Combat | -11 -10 -10 -10 -9 -------- Run | Yrd Mat Min Exi Min Hostile Shots Fired 73 | . 43 19 . 11 Missed 32 | . 21 9 . 2 Damage Taken 446 | . 179 89 . 178 Core 257 | . 117 59 . 81 Absorbed by Shields 53 | . 47 6 . . Core Remaining (%) 100 | 100 . . . . Volleys Fired 10 | . . 4 . 6 Largest 1 | . . 1 . 1 Hottest 40 | . . 40 . 23 Shots Fired 11 | . . 4 . 7 Gun 9 | . . 2 . 7 Cannon . | . . . . . Launcher 2 | . . 2 . . Special . | . . . . . Kinetic 7 | . . . . 7 Thermal . | . . . . . Explosive . | . . . . . Electromagnetic 4 | . . 4 . . Robot Hit Streak 5 | . . 2 . 5 Robot Miss Streak 2 | . . 2 . 1 Penetration Max . | . . . . . Secondary Targets . | . . . . . Shots Hit Robots 8 | . . 2 . 6 Core Hits 4 | . . 1 . 3 Critical Kills . | . . . . . Critical Parts Destroyed . | . . . . . Critical Strikes . | . . . . . Melee Attacks . | . . . . . Impact . | . . . . . Slashing . | . . . . . Piercing . | . . . . . Sneak Attacks . | . . . . . Combat Hostiles . | . . . . . Follow-up Attacks . | . . . . . Damage Inflicted 121 | . . 27 . 94 Guns 121 | . . 27 . 94 Cannons . | . . . . . Explosions . | . . . . . Melee . | . . . . . Ramming . | . . . . . Kinetic 94 | . . . . 94 Thermal . | . . . . . Explosive . | . . . . . Electromagnetic 27 | . . 27 . . Impact . | . . . . . Slashing . | . . . . . Piercing . | . . . . . Highest Corruption 2 | . 2 2 2 2 Average Corruption 2 | . 2 2 2 2 Corruption Purged . | . . . . . Corruption Blocked . | . . . . . Effects 139 | . 2 3 117 17 Message Errors 39 | . 1 . 33 5 Matter Fused 37 | . . 1 29 7 Heat Flow Errors 18 | . . 1 16 1 Energy Discharges 11 | . . . 10 1 Parts Fused 4 | . . . 3 1 Data Loss (minor) 17 | . . 1 15 1 Data Loss (major) 10 | . 1 . 9 . Misfires 1 | . . . . 1 Alerts 2 | . . . 2 . Overload Shots . | . . . . . Overflow Damage . | . . . . . Projectiles . | . . . . . Explosions . | . . . . . Melee . | . . . . . Knockbacks . | . . . . . Impact . | . . . . . Kinetic . | . . . . . Secondary . | . . . . . Self-Inflicted Damage 16 | . . 16 . . Shots 1 | . . 1 . . Rammed . | . . . . . Targets Rammed . | . . . . . Kicked . | . . . . . Crushed . | . . . . . Highest Temperature 261 | . . 261 249 156 Average Temperature 99 | . . 115 98 87 Received Heat Transfer 60 | . 60 . . . Effects 3 | . . 1 2 . Energy Bleed 2 | . . 1 1 . Interference 1 | . . . 1 . Siege Activations . | . . . . . Robots Corrupted . | . . . . . Combat Hostiles . | . . . . . Parts Fried . | . . . . . Impact Corruptions . | . . . . . Robots Melted . | . . . . . Combat Hostiles . | . . . . . Parts Melted . | . . . . . Heat Transferred . | . . . . . Parts Sabotaged . | . . . . . Parts Stolen . | . . . . . Parts Stripped . | . . . . . Power Chain Reactions . | . . . . . Alert | -11 -10 -10 -10 -9 ------- Run | Yrd Mat Min Exi Min Peak Influence 276 | . 276 264 . 76 Initial 107 | . . 107 . . Average 42 | . 81 184 . 7 Maximum Alert Level 1 | . 1 1 . . Low Security (%) 91 | . 87 52 . 100 Level 1 8 | . 12 47 . . Level 2 . | . . . . . Level 3 . | . . . . . Level 4 . | . . . . . Level 5 . | . . . . . High Security . | . . . . . Max Security . | . . . . . Squads Dispatched 2 | . 2 . . . Investigation 2 | . 2 . . . Extermination . | . . . . . Reinforcement . | . . . . . Assault . | . . . . . Garrison . | . . . . . Intercept . | . . . . . Searches Triggered . | . . . . . Construction Impeded . | . . . . . Haulers Reinforced . | . . . . . Active Scanning Responses . | . . . . . Cargo Convoy Interrupts . | . . . . . Stealth | -11 -10 -10 -10 -9 --------- Run | Yrd Mat Min Exi Min Distress Signals 2 | . 1 . . 1 Communications Jammed . | . . . . . Distress Signals . | . . . . . Times Spotted 31 | . 19 6 . 6 Peak Tracking Total 8 | . 8 3 . 4 Tactical Retreats 4 | . 4 . . . Traps | -11 -10 -10 -10 -9 ------- Run | Yrd Mat Min Exi Min Traps Triggered 1 | . 1 . . . Indirectly . | . . . . . Trap Hack Attempts . | . . . . . Triggered . | . . . . . Disarmed . | . . . . . Reprogrammed . | . . . . . Reused . | . . . . . Traps Extracted . | . . . . . Installed . | . . . . . Triggered 1 | . . . . 1 Machines | -11 -10 -10 -10 -9 ---------- Run | Yrd Mat Min Exi Min Machines Disabled . | . . . . . Max in Single Turn . | . . . . . Machines Repaired . | . . . . . Machines Dismantled . | . . . . . Machines Sabotaged . | . . . . . Overloaded Fab Kills . | . . . . . Hacking | -11 -10 -10 -10 -9 --------- Run | Yrd Mat Min Exi Min Machines Accessed 8 | . 6 . 2 . Terminals 4 | . 4 . . . Fabricators . | . . . . . Repair Stations . | . . . . . Recycling Units 2 | . 2 . . . Scanalyzers . | . . . . . Garrison Access . | . . . . . Total Hacks 21 | . 16 . 5 . Successful 12 | . 7 . 5 . Failed 9 | . 9 . . . Catastrophic 1 | . 1 . . . Database Lockouts . | . . . . . Manual 16 | . 15 . 1 . Terminals 12 | . 12 . . . Fabricators . | . . . . . Repair Stations . | . . . . . Recycling Units 4 | . 4 . . . Scanalyzers . | . . . . . Garrison Access . | . . . . . Terminal Hacks 5 | . . . 5 . Record 4 | . . . 4 . Derelict Proto ID Bank 1 | . . . 1 . Fabricator Hacks . | . . . . . Repair Station Hacks . | . . . . . Recycling Unit Hacks 1 | . 1 . . . Retrieve Components 1 | . 1 . . . Scanalyzer . | . . . . . Garrison Access Hacks . | . . . . . Unauthorized Hacks 6 | . 6 . . . Terminals 4 | . 4 . . . Botnet 4 | . 4 . . . Fabricators . | . . . . . Repair Stations . | . . . . . Recycling Units 2 | . 2 . . . Tunnel 2 | . 2 . . . Scanalyzers . | . . . . . Garrison Access . | . . . . . Data Cores Recovered . | . . . . . Used . | . . . . . Hacking Detections 5 | . 5 . . . Full Trace Events . | . . . . . Feedback Events . | . . . . . Feedback Blocked . | . . . . . Robot Schematics Acquired . | . . . . . Robots Built . | . . . . . Authchips . | . . . . . Time . | . . . . . Total Robot Build Rating . | . . . . . Part Schematics Acquired . | . . . . . Parts Built . | . . . . . Authchips . | . . . . . Time . | . . . . . Total Part Build Rating . | . . . . . Parts Repaired . | . . . . . Time . | . . . . . Parts Recycled . | . . . . . Recycled Matter . | . . . . . Retrieved Matter . | . . . . . Retrieved Components 8 | . 8 . . . Parts Scanalyzed . | . . . . . Part Schematics Acquired . | . . . . . Parts Damaged . | . . . . . Bothacking | -11 -10 -10 -10 -9 ------------ Run | Yrd Mat Min Exi Min Used RIF Installer . | . . . . . Robots Hacked . | . . . . . Non-combat . | . . . . . Combat . | . . . . . Robot Hacks Applied . | . . . . . Relay Couplers Released . | . . . . . Fabnet Peak Effective % . | . . . . . Robots Rewired . | . . . . . Allies Hacked . | . . . . . Hacks Repelled . | . . . . . Allies | -11 -10 -10 -10 -9 -------- Run | Yrd Mat Min Exi Min Total Allies 3 | . . 3 . . Largest Group 3 | . . 3 3 3 Highest-Rated Group 40 | . . 40 40 40 Highest-Rated Ally 16 | . . 16 16 16 Total Orders . | . . . . . Ally Attacks 40 | . . 15 . 25 Total Damage 360 | . . 151 . 209 Kills 9 | . . 6 . 3 Allies Corrupted . | . . . . . Allies Melted . | . . . . . Intel | -11 -10 -10 -10 -9 ------- Run | Yrd Mat Min Exi Min Robot Analysis Total . | . . . . . Derelict Logs Recovered 3 | . . 3 . . Drone Launches . | . . . . . Drone Recoveries . | . . . . . Exploration | -11 -10 -10 -10 -9 ------------- Run | Yrd Mat Min Exi Min Turns Passed 11633 | . 198 213 10158 1064 Spaces Moved 1516 | 1 337 338 611 229 Core 529 | . 337 192 . . Treads . | . . . . . Legs 1 | 1 . . . . Wheels . | . . . . . Hover . | . . . . . Flight 986 | . . 146 611 229 Fastest Speed 37 | 120 50 37 37 37 Average Speed 757 | 120 50 44 1663 435 Slowest Speed 2037 | 120 100 100 2037 437 Overloaded Moves . | . . . . . Propulsion Burnouts . | . . . . . Robots Hopped . | . . . . . Cave-ins Triggered . | . . . . . Exploration Rate (%) 45 | 2 61 62 71 33 Regions Visited 4 Branch Regions 3 Pre-discovered Areas 5 | . 2 2 1 . Known Exits Taken . | . . . . . Unknown Exits Taken 4 | 1 1 1 1 . Scrap Searched 3 | . . 2 . 1 Spaces Dug . | . . . . . Terrain Destroyed . | . . . . . Melee . | . . . . . Projectile . | . . . . . AOE . | . . . . . Terrain Rammed . | . . . . . Walls Destroyed . | . . . . . Machines Disabled . | . . . . . Actions | -11 -10 -10 -10 -9 --------- Run | Yrd Mat Min Exi Min Total 1674 | . 367 393 622 292 Wait 81 | . 2 44 . 35 Move 1512 | . 336 337 610 229 Hop . | . . . . . Pick Up 32 | . 9 . 10 13 Fast Attach 15 | . 6 4 1 4 Attach 2 | . . 2 . . Detach 3 | . 1 2 . . Swap . | . . . . . Drop 19 | . 13 . 1 5 Fire 10 | . . 4 . 6 Melee . | . . . . . Ram . | . . . . . Kick . | . . . . . Crush . | . . . . . Escape Stasis . | . . . . . Rewire . | . . . . . Trap . | . . . . . Miscellaneous . | . . . . . Route ------- -11/Scrapyard -10/Materials (discovered 2 exits: [*Mat] / [*Min]) -10/Mines (discovered 3 exits: [*Mat x2] / *Exi) -10/Exiles -9/Mines History --------- Turn | Location | Event 1 | -11/Scrapyard | Discovered new exit (range 0) 1 | -11/Scrapyard | Entered Materials 1 | -10/Materials | Released all parts (6) 59 | -10/Materials | Discovered new exit (range 7) 112 | -10/Materials | Discovered new exit (range 16) 199 | -10/Materials | Entered Mines 230 | -10/Mines | Discovered new exit (range 12) 236 | -10/Mines | Learned Materials stockpile data 237 | -10/Mines | Assisted by bots powering up and referring to "LRC-V3" 280 | -10/Mines | Core integrity fell below 50% 338 | -10/Mines | Discovered new exit (range 10) 352 | -10/Mines | Build established: Mutant 358 | -10/Mines | Learned location of Storage (-9) 363 | -10/Mines | A weapon hastily lodged in a ceiling crevice suddenly fell to the ground 376 | -10/Mines | Deemed a non-threat by the Exiles lab entrance 376 | -10/Mines | Discovered new exit (range 5) 412 | -10/Mines | Entered Exiles 412 | -10/Exiles | Accompanied by 3 allies 422 | -10/Exiles | Met 8R-AWN 428 | -10/Exiles | Met EX-HEX 442 | -10/Exiles | Met EX-DEC 742 | -10/Exiles | Build established: Hauler-Mutant 1190 | -10/Exiles | Learned location of Zion (-7) 2865 | -10/Exiles | Met EX-BIN 3151 | -10/Exiles | Aligned with FarCom system 3171 | -10/Exiles | Given EX-Vault access code 3639 | -10/Exiles | Opened EX-Vault 3762 | -10/Exiles | Found Trap Reconfigurator 4190 | -10/Exiles | Warned to stay clear of 0b10 Research branches 10387 | -10/Exiles | Discovered new exit (range 10) 10570 | -10/Exiles | Left Exiles lab with Trap Reconfigurator 10570 | -10/Exiles | Entered Mines 10570 | -9/Mines | Accompanied by 3 allies 10577 | -9/Mines | Received a Rocket Launcher from a helpful Derelict 10820 | -9/Mines | Assembled infested the area 10883 | -9/Mines | Build established: Mutant 11403 | -9/Mines | Core integrity fell below 20% 11634 | -9/Mines | Destroyed by D-53 Grenadier with Mini Grenade Launcher Last Messages --------------- 11402_ Trooper 1b destroyed. 11402_ K-01 Serf destroyed. 11402_ T-07 Excavator destroyed. 11402_ K-01 Serf destroyed. 11408_ Acquired 4 matter. 11409_ U-05 Engineer lays Concrete. 11410_ U-05 Engineer builds a Wall. 11412_ System corrupted: Hvy. Assault Rifle fused. 11415_ U-05 Engineer lays Concrete. 11416_ Dropped Rigged Fission Core. 11417_ U-05 Engineer lays Concrete. 11422_ K-01 Serf collects debris. 11422_ U-05 Engineer lays Concrete. 11424_ U-05 Engineer builds a Wall. 11427_ K-01 Serf collects debris. 11464_ System corrupted: Matter fused (-10). 11501_ System corrupted: Energy discharge (-38). 11541_ 25HO2H4EJJPX:/%MK&MPQX2SUSDJV 11632_ Flight Unit destroyed. 11634_ YD7FHAFHRIAFZ4SZUSRMJ6X: GT&RTA Map ----- +----------------------------------------------------+ | ????# ##???????# ##??????????????????????????? | | ????# ##??????## #???????????????????????????? | | ????## ! #???????###???????????????????????????? | | ????## ##????????????????????????????????????? | | ????# ##???????????????????????????????????? | | ????# #???????????????????????????????????? | | ????## ## ##??###????????????????????????????? | | ?????# ##?# #????####????????????????????? | | ?????# #???# #### #??## ##???????????????????? | | ?????# #???# #??# #??# #???????????????????? | | ??#### #???# #### #?## #????????????????????? | | ?## #???# ## ### #?????????????????????? | | ## #???# #??????????????????????? | | # [ ! %#####% ##????## ??????????????? | | ## *!%]!*[[ #???? %?????????????? | | ?## *] /=* #### #??? #???????????? | | ??# !##### ##??### ##??# %= #????????????? | | ?## = #?## * #?????####?# | #????????????? | | ## ##?# #?????? ## #????????????? | | # ! ##??# ##??### ## #????????????? | | # ##???# ######## #????????????? | | #######????## k##* | ##??? #????????????? | | ????????????## ! % ### #????????????? | | ?????????????## *= #???????????? | | ??????????????## *! # #???????????? | | ???????????????# @ ^r ##???????????? | | ???????????????# # #????????????? | | ??????????????# #? #????????????? | | ?????????????# ### k ##????????????? | | ?????????????# ##?### #### ##?????????????? | | ?????????????# ##????##??? d #??????????????? | | ?????????????#####???????????? #??????????????? | | ?????????????????????????????? #?????????????? | | ??????????????????????????????? #????????????? | | ???????????????????????????????? #???????????? | | ?????????????????????????????????? ????????????? | | ??????????????????????????????????? ????????????? | | ?????????????????????????????????????????????????? | | ?????????????????????????????????????????????????? | | ?????????????????????????????????????????????????? | | ?????????????????????????????????????????????????? | | ?????????????????????????????????????????????????? | | ?????????????????????????????????????????????????? | | ?????????????????????????????????????????????????? | | ?????????????????????????????????????????????????? | | ?????????????????????????????????????????????????? | | ?????????????????????????????????????????????????? | | ?????????????????????????????????????????????????? | | ?????????????????????????????????????????????????? | | ?????????????????????????????????????????????????? | +----------------------------------------------------+ Best States ------------- Heat Dissipation 25 Energy Generation 5 Energy Capacity 100 Matter Stores 300 Matter Capacity 300 Sight Range 16 Terrain Scan Density 10 Armor Coverage 150 Evasion (%) 62 Targeting Accuracy 5 Item Schematics ----------------- None Robot Schematics ------------------ None Fabricated ------------ Nothing Alien Tech Used ----------------- None Achievements -------------- None Challenges ------------ None Game ------ Seed GunScatterSteel Manual? 0 Play Time 00:14:53 Cumulative 95.3 hours Start 2024.11.16 @ 19:35:02 End 2024.11.16 @ 19:47:38 Sessions 1 Manual Loads 0 Difficulty Rogue Special Mode None Game No. 168 Rogue 168 Adventurer 0 Explorer 0 Win Type - Total 0 Types 0/0/0/0/0/0/0/0/0 Lore% 42 Gallery% 37 Achievement% 34 Wizard Run 0 Options --------- Layout 0 ASCII 0 Keyboard 0 Movement Mouse Keybinds 0 Fullscreen 1 Font 24/Cog Map View 91x25 Zoom Use 99% Tactical HUD 1 Map Filters NONE Filters NONE Steam 1 RUN: e3a5b5a7-230e-43de-8f79-ef32ece10022